fUSD/lending_fUSD_20250820
["ID","MTS","AMOUNT","RATE_DAILY","PERIOD"]
[380374766,1755713443990,-173.144823,0.00022,7]
[380374768,1755713443999,-173.144823,0.00022,7]
[380374770,1755713444008,-151.0,0.00022,7]
[380374772,1755713444018,-151.0,0.00022,7]
[380374774,1755713444028,-151.0,0.00022,7]
[380374775,1755713444038,-151.0,0.00022,7]
[380374777,1755713444048,-151.0,0.00022,7]
[380374780,1755713444060,-151.0,0.00022,7]
[380374782,1755713444069,-151.0,0.00022,7]
[380374784,1755713444080,-5831.562045,0.00022,7]
[380374786,1755713444092,-151.0,0.00022,7]
[380374787,1755713444102,-178.690355,0.00022,7]
[380374789,1755713444112,-151.0,0.00022,7]
[380374792,1755713444122,-5831.562045,0.00022,7]
[380374793,1755713444131,-151.0,0.00022,7]
[380374796,1755713444142,-178.690355,0.00022,7]
[380374798,1755713444151,-151.0,0.00022,7]
[380374800,1755713444160,-5831.562045,0.00022,7]
[380374801,1755713444170,-151.0,0.00022,7]
[380374804,1755713444180,-178.690355,0.00022,7]
[380374806,1755713444190,-5831.562045,0.00022,7]
[380374807,1755713444198,-151.0,0.00022,7]
[380374809,1755713444208,-178.690355,0.00022,7]
[380374811,1755713444217,-151.0,0.00022,7]
[380374813,1755713444226,-151.0,0.00022,7]
[380374815,1755713444235,-151.0,0.00022,7]
[380374817,1755713444245,-151.0,0.00022,7]
[380374819,1755713444254,-151.0,0.00022,7]
[380374821,1755713444264,-151.0,0.00022,7]
[380374823,1755713444273,-151.0,0.00022,7]
[380374825,1755713444282,-151.0,0.00022,7]
[380374827,1755713444291,-241.993374,0.00022,7]
[380374830,1755713444302,-279.12,0.00022,7]
[380374832,1755713444312,-241.993374,0.00022,7]
[380374834,1755713444322,-700.201196,0.00022,7]
[380374836,1755713444331,-241.993374,0.00022,7]
[380374838,1755713444340,-406.437094,0.00022,7]
[380374840,1755713444349,-700.201196,0.00022,7]
[380374842,1755713444358,-241.993374,0.00022,7]
[380374844,1755713444368,-700.201196,0.00022,7]
[380374845,1755713444377,-151.0,0.00022,7]
[380374848,1755713444386,-151.0,0.00022,7]
[380374850,1755713444397,-700.201196,0.00022,7]
[380374852,1755713444406,-224.701226,0.00022,7]
[380374854,1755713444415,-151.0,0.00022,7]
[380374855,1755713444426,-151.0,0.00022,7]
[380374858,1755713444436,-224.701226,0.00022,7]
[380374860,1755713444447,-151.0,0.00022,7]
[380374862,1755713444456,-406.437094,0.00022,7]
[380374864,1755713444465,-151.0,0.00022,7]
[380374866,1755713444475,-224.701226,0.00022,7]
[380374868,1755713444491,-151.0,0.00022,7]
[380374870,1755713444501,-406.437094,0.00022,7]
[380374872,1755713444511,-224.701226,0.00022,7]
[380374874,1755713444520,-406.437094,0.00022,7]
[380374876,1755713444530,-151.0,0.00022,7]
[380374878,1755713444539,-265.190019,0.00022,7]
[380374880,1755713444549,-173.426153,0.00022,7]
[380374882,1755713444559,-151.0,0.00022,7]
[380374884,1755713444569,-173.426153,0.00022,7]
[380374886,1755713444578,-151.0,0.00022,7]
[380374888,1755713444587,-173.426153,0.00022,7]
[380374890,1755713444596,-173.426153,0.00022,7]
[380374892,1755713444605,-206.392357,0.00022,7]
[380374894,1755713444614,-206.392357,0.00022,7]
[380374896,1755713444623,-206.392357,0.00022,7]
[380374898,1755713444632,-151.0,0.00022,7]
[380374900,1755713444643,-151.0,0.00022,7]
[380374902,1755713444652,-206.392357,0.00022,7]
[380374904,1755713444662,-151.0,0.00022,7]
[380374906,1755713444671,-151.0,0.00022,7]
[380374908,1755713444681,-151.0,0.00022,7]
[380374910,1755713444690,-151.0,0.00022,7]
[380374912,1755713444700,-355.043595,0.00022,7]
[380374914,1755713444714,-151.0,0.00022,7]
[380374916,1755713444723,-151.0,0.00022,7]
[380374918,1755713444733,-239.822401,0.00022,7]
[380374920,1755713444742,-355.043595,0.00022,7]
[380374922,1755713444753,-161.0,0.00022,2]
[380374924,1755713444763,-151.0,0.00022,7]
[380374926,1755713444774,-521.543757,0.00022,7]
[380374928,1755713444784,-151.0,0.00022,7]
[380374930,1755713444793,-151.0,0.00022,7]
[380374932,1755713444803,-355.043595,0.00022,7]
[380374934,1755713444812,-239.822401,0.00022,7]
[380374936,1755713444821,-151.0,0.00022,7]
[380374939,1755713444831,-151.0,0.00022,7]
[380374941,1755713444840,-521.543757,0.00022,7]
[380374943,1755713444849,-151.0,0.00022,7]
[380374945,1755713444858,-355.043595,0.00022,7]
[380374947,1755713444868,-239.822401,0.00022,7]
[380374948,1755713444877,-151.0,0.00022,7]
[380374950,1755713444887,-521.543757,0.00022,7]
[380374952,1755713444897,-151.0,0.00022,7]
[380374954,1755713444906,-239.822401,0.00022,7]
[380374956,1755713444916,-177.26857,0.00022,7]
[380374958,1755713444925,-458.46930693,0.00022,7]
[380374960,1755713444934,-263.778285,0.00022,7]
[380374962,1755713444943,-166.66,0.00022045,2]
[380374964,1755713444953,-397.13,0.00022051,2]
[380374966,1755713444962,-493.45046717,0.00022071,2]
[380374968,1755713444971,-6368.535591,0.00022072,4]
[380374970,1755713444980,-4113.43918626,0.00022072,4]
[380374972,1755713444991,-369.6995532,0.00022072,4]
[380374974,1755713445000,-484.05654316,0.000221,2]
[380374976,1755713445009,-2222.22,0.000221,2]
[380374978,1755713445019,-235.23136966,0.0002211,2]
[380374980,1755713445028,-150.0,0.00022152,2]
[380374981,1755713445038,-151.0,0.00022229,2]
[380374983,1755713445050,-151.0,0.00022229,2]
[380374985,1755713445059,-151.0,0.00022229,2]
[380374988,1755713445069,-151.0,0.00022229,2]
[380374990,1755713445079,-277.35679052,0.00022229,2]
[380374991,1755713445088,-151.0,0.00022229,2]
[380374993,1755713445098,-721.12765535,0.00022229,2]
[380374995,1755713445107,-151.0,0.00022229,2]
[380374997,1755713445117,-207.265879,0.00022229,2]
[380375000,1755713445126,-151.0,0.00022229,2]
[380375001,1755713445136,-151.0,0.00022229,2]
[380375004,1755713445147,-9274.81107495,0.00022229,2]
[380375006,1755713445157,-151.0,0.00022229,2]
[380375008,1755713445167,-151.0,0.00022229,2]
[380375010,1755713445176,-151.0,0.00022229,2]
[380375012,1755713445185,-151.0,0.00022229,2]
[380375014,1755713445195,-151.0,0.00022229,2]
[380375015,1755713445204,-151.0,0.00022229,2]
[380375017,1755713445213,-151.0,0.00022229,2]
[380375020,1755713445223,-151.0,0.00022229,2]
[380375022,1755713445233,-151.0,0.00022229,2]
[380375024,1755713445242,-151.0,0.00022229,2]
[380375026,1755713445252,-322.6107,0.00022229,2]
[380375027,1755713445261,-163.38670319,0.00022274,30]
[380375029,1755713445274,-9617.97908473,0.00022284,2]
[380375030,1755713445284,-300.0,0.00022299,2]
[380375031,1755713445295,-150.0,0.00022299,2]
[380375032,1755713445304,-155540.39,0.000223,7]
[380375033,1755713445314,-6368.535591,0.0002232,4]
[380375035,1755713445324,-4113.43918626,0.0002232,4]
[380375036,1755713445333,-369.6995532,0.0002232,4]
[380375037,1755713445343,-1000.0,0.00022321,2]
[380375038,1755713445353,-1000.0,0.00022321,2]
[380375039,1755713445362,-1000.0,0.00022321,2]
[380375040,1755713445372,-958.07447694,0.00022321,2]
[380375041,1755713445382,-9973.84431086,0.00022339,2]
[380375042,1755713445392,-150.0,0.00022389,4]
[380375043,1755713445401,-150.0,0.00022389,4]
[380375044,1755713445411,-150.0,0.00022389,4]
[380375045,1755713445420,-165.38518678,0.00022389,4]
[380375046,1755713445430,-150.0,0.00022389,4]
[380375047,1755713445439,-150.0,0.00022389,4]
[380375048,1755713445449,-150.0,0.00022389,4]
[380375049,1755713445458,-150.0,0.00022389,4]
[380375050,1755713445467,-150.56440366,0.00022389,4]
[380375051,1755713445477,-150.0,0.00022389,4]
[380375052,1755713445486,-150.0,0.00022389,4]
[380375053,1755713445496,-150.0,0.00022389,4]
[380375054,1755713445505,-150.0,0.00022389,4]
[380375055,1755713445516,-150.55682607,0.00022389,4]
[380375056,1755713445525,-150.0,0.00022389,4]
[380375057,1755713445535,-10342.87655036,0.00022394,2]
[380375058,1755713445544,-163.38670319,0.00022438,30]
[380375059,1755713445554,-10725.56298273,0.00022449,2]
[380375060,1755713445564,-2900.0,0.000225,15]
[380375061,1755713445573,-34736.25297666,0.000225,2]
[380375062,1755713445583,-1000.0,0.000225,2]
[380375063,1755713445595,-11122.40881309,0.00022504,2]
[380375064,1755713445604,-1000.0,0.00022521,2]
[380375065,1755713445613,-1000.0,0.00022521,2]
[380375066,1755713445623,-694.78554114,0.00022521,2]
[380375067,1755713445632,-664.53664295,0.00022521,2]
[380375068,1755713445641,-1000.0,0.00022521,2]
[380375069,1755713445651,-945.93437061,0.00022521,2]
[380375070,1755713445660,-747.19820501,0.00022521,2]
[380375071,1755713445671,-500.0,0.00022521,2]
[380375072,1755713445680,-1000.0,0.00022521,2]
[380375074,1755713445690,-1000.0,0.00022521,2]
[380375075,1755713445700,-1000.0,0.00022521,2]
[380375077,1755713445715,-1000.0,0.00022521,2]
[380375079,1755713445724,-1000.0,0.00022521,2]
[380375080,1755713445734,-11533.93793917,0.00022559,2]
[380375081,1755713445744,-6368.535591,0.00022568,4]
[380375082,1755713445755,-4113.43918626,0.00022568,4]
[380375083,1755713445766,-369.6995532,0.00022568,4]
[380375084,1755713445776,-259.0,0.0002258,2]
[380375085,1755713445784,-1138.82998827,0.00022589,2]
[380375086,1755713445936,-189.554899,0.00022,7]
[380375087,1755713445945,-4750.38252369,0.00022589,2]
[380375088,1755713445964,-11425.39822704,0.00022589,2]
[380375089,1755713445974,-151.0,0.00022592,2]
[380375090,1755713445983,-163.38670319,0.00022603,30]
[380375091,1755713445993,-11445.75487553,0.00022614,2]
[380375092,1755713446006,-514.93876739,0.00022614,2]
[380375093,1755713446016,-178.77,0.00022635,2]
[380375094,1755713446026,-196.38423222,0.00022636,2]
[380375095,1755713446036,-151.0,0.00022668,7]
[380375096,1755713446045,-151.0,0.00022668,7]
[380375097,1755713446055,-151.0,0.00022668,7]
[380375098,1755713446065,-151.0,0.00022668,7]
[380375099,1755713446075,-151.0,0.00022668,7]
[380375100,1755713446087,-151.0,0.00022668,7]
[380375101,1755713446096,-281.152516,0.00022668,7]
[380375102,1755713446107,-151.0,0.00022668,7]
[380375103,1755713446117,-189.554899,0.00022668,7]
[380375104,1755713446127,-12403.23930771,0.00022669,2]
[380375106,1755713446137,-4124.85479,0.0002268,2]
[380375107,1755713446156,-311.51,0.00022699,2]
[380375108,1755713446166,-166.66,0.00022707,2]
[380375109,1755713446177,-800.0,0.00022708,2]
[380375110,1755713446187,-511.92211784,0.0002271,2]
[380375111,1755713446197,-900.0,0.0002272,8]
[380375112,1755713446208,-900.0,0.0002272,8]
[380375113,1755713446218,-900.0,0.0002272,8]
[380375114,1755713446229,-900.0,0.0002272,8]
[380375115,1755713446239,-900.0,0.0002272,8]
[380375116,1755713446250,-900.0,0.0002272,8]
[380375117,1755713446261,-900.0,0.0002272,8]
[380375118,1755713446270,-900.0,0.0002272,8]
[380375119,1755713446280,-900.0,0.0002272,8]
[380375120,1755713446290,-900.0,0.0002272,8]
[380375121,1755713446300,-900.0,0.0002272,8]
[380375122,1755713446309,-900.0,0.0002272,8]
[380375123,1755713446319,-900.0,0.0002272,8]
[380375124,1755713446328,-900.0,0.0002272,8]
[380375125,1755713446338,-900.0,0.0002272,8]
[380375126,1755713446347,-900.0,0.0002272,8]
[380375127,1755713446357,-12806.38498553,0.00022724,2]
[380375128,1755713446368,-55.77417657,0.00022724,2]
[380375129,1755713446377,-163.38670319,0.00022767,30]
[380375130,1755713446386,-151.0,0.00022777,2]
[380375131,1755713446398,-4045.24952683,0.00022779,2]
[380375132,1755713446407,-151.0,0.00022779,7]
[380375133,1755713446418,-178.690355,0.00022779,7]
[380375134,1755713446427,-151.0,0.00022779,7]
[380375135,1755713446436,-151.0,0.00022779,7]
[380375136,1755713446446,-151.0,0.00022779,7]
[380375137,1755713446456,-178.690355,0.00022779,7]
[380375138,1755713446466,-178.690355,0.00022779,7]
[380375139,1755713446476,-151.0,0.00022779,7]
[380375140,1755713446486,-178.690355,0.00022779,7]
[380375141,1755713446496,-151.0,0.00022779,7]
[380375142,1755713446506,-151.0,0.00022779,7]
[380375143,1755713446516,-151.0,0.00022779,7]
[380375144,1755713446526,-151.0,0.00022779,7]
[380375145,1755713446536,-241.993374,0.00022779,7]
[380375146,1755713446547,-241.993374,0.00022779,7]
[380375147,1755713446556,-241.993374,0.00022779,7]
[380375148,1755713446566,-406.437094,0.00022779,7]
[380375149,1755713446575,-241.993374,0.00022779,7]
[380375150,1755713446585,-151.0,0.00022779,7]
[380375151,1755713446594,-224.701226,0.00022779,7]
[380375152,1755713446604,-224.701226,0.00022779,7]
[380375153,1755713446614,-151.0,0.00022779,7]
[380375154,1755713446623,-390.8374028,0.00022779,7]
[380375155,1755713446780,-521.543757,0.00022,7]
[380375156,1755713446790,-21.299243,0.00022,7]
[380375157,1755713446802,-168.255656,0.00022,7]
[380375158,1755713446812,-189.554899,0.00022,7]
[380375159,1755713446821,-265.539445,0.00022597,2]
[380375160,1755713446833,-227.91102217,0.00022597,2]
[380375161,1755713446843,-189.554899,0.00022668,7]
[380375162,1755713446853,-189.554899,0.00022668,7]
[380375163,1755713446863,-8.23861018,0.00022779,7]
[380375164,1755713446875,-7.36108102,0.00022779,7]
[380375165,1755713446886,-224.701226,0.00022779,7]
[380375168,1755713447197,-406.437094,0.00022779,7]
[380375169,1755713447207,-224.701226,0.00022779,7]
[380375170,1755713447217,-183.13937298,0.00022779,7]
[380375171,1755713447311,-189.554899,0.00022,7]
[380375172,1755713447320,-189.554899,0.00022668,7]
[380375173,1755713447330,-223.29772102,0.00022779,7]
[380375174,1755713447340,-151.0,0.00022779,7]
[380375175,1755713447350,-149.77343624,0.00022779,7]
[380375176,1755713447361,-23.65271676,0.00022779,7]
[380375177,1755713447371,-173.426153,0.00022779,7]
[380375178,1755713447381,-173.426153,0.00022779,7]
[380375179,1755713447390,-173.426153,0.00022779,7]
[380375180,1755713447402,-151.0,0.00022779,7]
[380375181,1755713447411,-151.0,0.00022779,7]
[380375182,1755713447420,-151.0,0.00022779,7]
[380375183,1755713447430,-151.0,0.00022779,7]
[380375184,1755713447439,-41.40382139,0.00022779,7]
[380375185,1755713447450,-313.63977361,0.00022779,7]
[380375186,1755713447459,-151.0,0.00022779,7]
[380375187,1755713447469,-239.822401,0.00022779,7]
[380375188,1755713447478,-355.043595,0.00022779,7]
[380375189,1755713447488,-521.543757,0.00022779,7]
[380375190,1755713447498,-151.0,0.00022779,7]
[380375191,1755713447508,-254.6724764,0.00022779,7]
[380375192,1755713447539,-100.3711186,0.00022779,7]
[380375193,1755713447549,-239.822401,0.00022779,7]
[380375194,1755713447560,-521.543757,0.00022779,7]
[380375195,1755713447571,-151.0,0.00022779,7]
[380375196,1755713447581,-355.043595,0.00022779,7]
[380375197,1755713447591,-59.37113725,0.00022779,7]
[380375198,1755713447604,-180.45126375,0.00022779,7]
[380375199,1755713447614,-521.543757,0.00022779,7]
[380375200,1755713447623,-239.822401,0.00022779,7]
[380375201,1755713447633,-521.543757,0.00022779,7]
[380375202,1755713447644,-6368.535591,0.00022816,4]
[380375203,1755713447653,-4113.43918626,0.00022816,4]
[380375204,1755713447663,-369.6995532,0.00022816,4]
[380375205,1755713447672,-600.0,0.00022822,2]
[380375206,1755713447682,-357.08350197,0.00022858,2]
[380375207,1755713447691,-1500.0,0.00022868,2]
[380375208,1755713447701,-1500.0,0.00022868,2]
[380375209,1755713447712,-1500.0,0.00022868,2]
[380375210,1755713447721,-3863.4118671,0.00022913,2]
[380375211,1755713447731,-163.38670319,0.00022932,30]
[380375212,1755713447740,-1100.0,0.00022982,2]
[380375213,1755713447751,-500.0,0.00022982,2]
[380375214,1755713447761,-300.0,0.00022999,2]
[380375215,1755713447770,-620.12205736,0.00023,7]
[380375216,1755713447779,-1000.0,0.00023,14]
[380375217,1755713447789,-430.42501957,0.00023,2]
[380375218,1755713447798,-165.0,0.00023,5]
[380375219,1755713447807,-5962.23,0.00023,7]
[380375220,1755713447817,-1730.511004,0.00023,7]
[380375221,1755713447826,-1730.511004,0.00023,7]
[380375222,1755713447835,-192.811702,0.00023,7]
[380375223,1755713447845,-328.643952,0.00023,7]
[380375224,1755713447854,-192.811702,0.00023,7]
[380375225,1755713447863,-328.643952,0.00023,7]
[380375226,1755713447874,-192.811702,0.00023,7]
[380375227,1755713447883,-328.643952,0.00023,7]
[380375228,1755713447893,-192.811702,0.00023,7]
[380375229,1755713447903,-328.643952,0.00023,7]
[380375230,1755713447912,-151.0,0.00023,7]
[380375231,1755713447921,-1730.511004,0.00023,7]
[380375232,1755713447931,-151.0,0.00023,7]
[380375233,1755713447940,-1730.511004,0.00023,7]
[380375234,1755713447950,-160.877213,0.00023,7]
[380375235,1755713447960,-160.877213,0.00023,7]
[380375236,1755713447969,-151.0,0.00023,7]
[380375237,1755713447978,-160.877213,0.00023,7]
[380375238,1755713447988,-151.0,0.00023,7]
[380375239,1755713447997,-151.0,0.00023,7]
[380375240,1755713448007,-160.877213,0.00023,7]
[380375241,1755713448016,-297.555463,0.00023,7]
[380375242,1755713448026,-297.555463,0.00023,7]
[380375243,1755713448035,-297.555463,0.00023,7]
[380375244,1755713448044,-151.0,0.00023,7]
[380375245,1755713448053,-225.690701,0.00023,7]
[380375246,1755713448062,-297.555463,0.00023,7]
[380375247,1755713448072,-225.690701,0.00023,7]
[380375248,1755713448082,-225.690701,0.00023,7]
[380375249,1755713448091,-225.690701,0.00023,7]
[380375250,1755713448100,-151.0,0.00023,7]
[380375251,1755713448110,-151.0,0.00023,7]
[380375252,1755713448120,-151.0,0.00023,7]
[380375253,1755713448130,-151.0,0.00023,7]
[380375254,1755713448139,-151.0,0.00023,7]
[380375255,1755713448153,-216.559262,0.00023,7]
[380375256,1755713448163,-151.0,0.00023,7]
[380375257,1755713448173,-151.222401,0.00023,7]
[380375258,1755713448183,-151.0,0.00023,7]
[380375259,1755713448194,-151.0,0.00023,7]
[380375260,1755713448205,-192.985103,0.00023,7]
[380375261,1755713448215,-151.32211,0.00023,7]
[380375262,1755713448226,-151.0,0.00023,7]
[380375263,1755713448236,-430.905655,0.00023,7]
[380375264,1755713448246,-151.0,0.00023,7]
[380375265,1755713448256,-344.906175,0.00023,7]
[380375266,1755713448265,-430.905655,0.00023,7]
[380375267,1755713448275,-151.0,0.00023,7]
[380375268,1755713448285,-151.0,0.00023,7]
[380375269,1755713448295,-344.906175,0.00023,7]
[380375270,1755713448305,-151.0,0.00023,7]
[380375271,1755713448314,-151.0,0.00023,7]
[380375272,1755713448324,-344.906175,0.00023,7]
[380375273,1755713448334,-344.906175,0.00023,7]
[380375274,1755713448344,-151.0,0.00023,7]
[380375275,1755713448353,-151.0,0.00023,7]
[380375276,1755713448363,-151.0,0.00023,7]
[380375277,1755713448373,-294.732315,0.00023,7]
[380375278,1755713448383,-430.905655,0.00023,7]
[380375279,1755713448395,-151.0,0.00023,7]
[380375280,1755713448405,-151.0,0.00023,7]
[380375281,1755713448415,-430.905655,0.00023,7]
[380375282,1755713448426,-151.0,0.00023,7]
[380375283,1755713448436,-151.0,0.00023,7]
[380375284,1755713448446,-151.0,0.00023,7]
[380375285,1755713448456,-343.983973,0.00023,7]
[380375286,1755713448465,-343.983973,0.00023,7]
[380375287,1755713448474,-343.983973,0.00023,7]
[380375288,1755713448484,-343.983973,0.00023,7]
[380375289,1755713448493,-151.0,0.00023,7]
[380375290,1755713448502,-334.842945,0.00023,7]
[380375291,1755713448512,-151.0,0.00023,7]
[380375292,1755713448522,-334.842945,0.00023,7]
[380375293,1755713448531,-151.0,0.00023,7]
[380375294,1755713448541,-205.765105,0.00023,7]
[380375295,1755713448552,-334.842945,0.00023,7]
[380375296,1755713448561,-151.0,0.00023,7]
[380375297,1755713448571,-151.0,0.00023,7]
[380375298,1755713448580,-334.842945,0.00023,7]
[380375299,1755713448589,-228.285808,0.00023,7]
[380375300,1755713448599,-282.995256,0.00023,7]
[380375301,1755713448609,-151.0,0.00023,7]
[380375302,1755713448618,-282.995256,0.00023,7]
[380375303,1755713448628,-165.983633,0.00023,7]
[380375304,1755713448638,-282.995256,0.00023,7]
[380375305,1755713448650,-175.509279,0.00023,7]
[380375306,1755713448659,-282.995256,0.00023,7]
[380375307,1755713448669,-165.983633,0.00023,7]
[380375308,1755713448680,-175.509279,0.00023,7]
[380375309,1755713448689,-175.509279,0.00023,7]
[380375310,1755713448699,-175.509279,0.00023,7]
[380375311,1755713448711,-151.0,0.00023,7]
[380375312,1755713448723,-151.0,0.00023,7]
[380375313,1755713448732,-151.0,0.00023,7]
[380375314,1755713448743,-151.0,0.00023,7]
[380375315,1755713448754,-151.0,0.00023,7]
[380375316,1755713448764,-165.983633,0.00023,7]
[380375317,1755713448773,-386.333156,0.00023,7]
[380375318,1755713448783,-386.333156,0.00023,7]
[380375319,1755713448792,-386.333156,0.00023,7]
[380375320,1755713448804,-386.333156,0.00023,7]
[380375321,1755713448813,-165.983633,0.00023,7]
[380375322,1755713448823,-151.0,0.00023,7]
[380375323,1755713448832,-1670.917246,0.00023,7]
[380375324,1755713448842,-1670.917246,0.00023,7]
[380375325,1755713448852,-1670.917246,0.00023,7]
[380375326,1755713448862,-151.0,0.00023,7]
[380375327,1755713448871,-1670.917246,0.00023,7]
[380375328,1755713448881,-298.785686,0.00023,7]
[380375329,1755713448891,-151.0,0.00023,7]
[380375330,1755713448902,-298.785686,0.00023,7]
[380375331,1755713448912,-151.0,0.00023,2]
[380375332,1755713448922,-151.0,0.00023,7]
[380375333,1755713448932,-298.785686,0.00023,7]
[380375334,1755713448941,-298.785686,0.00023,7]
[380375335,1755713448951,-151.0,0.00023,7]
[380375336,1755713448960,-151.0,0.00023,7]
[380375337,1755713448969,-151.0,0.00023,7]
[380375338,1755713448979,-151.0,0.00023,7]
[380375339,1755713448988,-151.0,0.00023,7]
[380375340,1755713448997,-151.0,0.00023,7]
[380375341,1755713449007,-1760.123649,0.00023,7]
[380375342,1755713449016,-248.576287,0.00023,7]
[380375343,1755713449025,-609.729252,0.00023,7]
[380375344,1755713449035,-1760.123649,0.00023,7]
[380375345,1755713449044,-609.729252,0.00023,7]
[380375346,1755713449053,-1760.123649,0.00023,7]
[380375347,1755713449063,-175.035692,0.00023,7]
[380375348,1755713449072,-1760.123649,0.00023,7]
[380375349,1755713449082,-609.729252,0.00023,7]
[380375350,1755713449092,-175.035692,0.00023,7]
[380375351,1755713449101,-175.035692,0.00023,7]
[380375352,1755713449111,-609.729252,0.00023,7]
[380375353,1755713449122,-151.0,0.00023,7]
[380375354,1755713449131,-409.476412,0.00023,7]
[380375355,1755713449142,-343.246244,0.00023,7]
[380375356,1755713449152,-175.035692,0.00023,7]
[380375357,1755713449162,-409.476412,0.00023,7]
[380375358,1755713449171,-151.0,0.00023,7]
[380375359,1755713449182,-343.246244,0.00023,7]
[380375360,1755713449192,-409.476412,0.00023,7]
[380375361,1755713449202,-343.246244,0.00023,7]
[380375362,1755713449212,-151.0,0.00023,7]
[380375363,1755713449222,-409.476412,0.00023,7]
[380375364,1755713449231,-151.0,0.00023,7]
[380375365,1755713449241,-343.246244,0.00023,7]
[380375366,1755713449251,-151.0,0.00023,7]
[380375367,1755713449261,-151.0,0.00023,7]
[380375368,1755713449270,-151.0,0.00023,7]
[380375369,1755713449280,-151.0,0.00023,7]
[380375370,1755713449290,-151.0,0.00023,7]
[380375371,1755713449300,-151.0,0.00023,7]
[380375372,1755713449309,-191.678375,0.00023,7]
[380375373,1755713449319,-151.0,0.00023,7]
[380375374,1755713449328,-189.666131,0.00023,7]
[380375375,1755713449338,-151.0,0.00023,7]
[380375376,1755713449348,-189.666131,0.00023,7]
[380375377,1755713449357,-191.678375,0.00023,7]
[380375378,1755713449367,-189.666131,0.00023,7]
[380375379,1755713449377,-191.678375,0.00023,7]
[380375380,1755713449387,-191.678375,0.00023,7]
[380375381,1755713449397,-189.666131,0.00023,7]
[380375382,1755713449406,-206.4247,0.00023,7]
[380375383,1755713449416,-151.0,0.00023,7]
[380375384,1755713449425,-206.4247,0.00023,7]
[380375385,1755713449436,-151.0,0.00023,7]
[380375386,1755713449445,-206.4247,0.00023,7]
[380375387,1755713449454,-151.0,0.00023,7]
[380375388,1755713449463,-206.4247,0.00023,7]
[380375389,1755713449472,-275.35775,0.00023,7]
[380375390,1755713449481,-510.0,0.00023,7]
[380375391,1755713449490,-151.0,0.00023,7]
[380375392,1755713449500,-151.0,0.00023,7]
[380375393,1755713449509,-151.0,0.00023,7]
[380375394,1755713449519,-151.0,0.00023,7]
[380375395,1755713449528,-175.855216,0.00023,7]
[380375396,1755713449668,-151.0,0.00023,7]
[380375397,1755713449678,-386.811377,0.00023,7]
[380375398,1755713449687,-151.0,0.00023,7]
[380375399,1755713449696,-271.798213,0.00023,7]
[380375400,1755713449706,-386.811377,0.00023,7]
[380375401,1755713449718,-151.0,0.00023,7]
[380375402,1755713449727,-271.798213,0.00023,7]
[380375403,1755713449736,-386.811377,0.00023,7]